[Event "*** SCC Grand Prix: Titled Tuesday Blitz"]
[Site "Chess.com"]
[Date "2020.06.23"]
[Round "5"]
[White "RitvarsReimanis"]
[Black "AradNazari"]
[Result "1-0"]
[WhiteElo "2552"]
[BlackElo "2387"]
[TimeControl "180+1"]
[EndTime "10:57:14 PDT"]
[Termination "RitvarsReimanis won by checkmate"]

1. d4 {[%clk 0:02:59.9]} 1... Nf6 {[%clk 0:03:00.9]} 2. c4 {[%clk 0:02:59.8]}
2... e6 {[%clk 0:03:01.2]} 3. Nf3 {[%clk 0:02:59.7]} 3... d5 {[%clk 0:03:01.7]}
4. Nc3 {[%clk 0:02:59.7]} 4... Bb4 {[%clk 0:03:01.4]} 5. cxd5 {[%clk 0:02:59.1]}
5... exd5 {[%clk 0:03:00.9]} 6. Bg5 {[%clk 0:02:59.3]} 6... c6 {[%clk
0:03:01.2]} 7. e3 {[%clk 0:02:57.5]} 7... Bf5 {[%clk 0:02:59.7]} 8. Bd3 {[%clk
0:02:57]} 8... Bxd3 {[%clk 0:02:59]} 9. Qxd3 {[%clk 0:02:57.9]} 9... Nbd7 {[%clk
0:02:58.7]} 10. O-O {[%clk 0:02:57.5]} 10... Bd6 {[%clk 0:02:57.6]} 11. e4
{[%clk 0:02:55]} 11... dxe4 {[%clk 0:02:57.8]} 12. Nxe4 {[%clk 0:02:55.9]} 12...
Be7 {[%clk 0:02:58.1]} 13. Nxf6+ {[%clk 0:02:48.7]} 13... Nxf6 {[%clk 0:02:59]}
14. Bxf6 {[%clk 0:02:41.6]} 14... Bxf6 {[%clk 0:02:59.9]} 15. Rfe1+ {[%clk
0:02:41.9]} 15... Kf8 {[%clk 0:03:00.4]} 16. Qb3 {[%clk 0:02:37.9]} 16... Qb6
{[%clk 0:02:56.5]} 17. Qc4 {[%clk 0:02:22.3]} 17... g6 {[%clk 0:02:37]} 18. Ne5
{[%clk 0:02:16.5]} 18... Bxe5 {[%clk 0:02:32.3]} 19. dxe5 {[%clk 0:02:17.4]}
19... Re8 {[%clk 0:02:27.6]} 20. e6 {[%clk 0:01:59.7]} 20... fxe6 {[%clk
0:01:48.6]} 21. Rxe6 {[%clk 0:01:57]} 21... Rxe6 {[%clk 0:01:44.3]} 22. Qxe6
{[%clk 0:01:57.9]} 22... c5 {[%clk 0:01:44]} 23. Qc8+ {[%clk 0:01:51.8]} 23...
Kg7 {[%clk 0:01:43.7]} 24. Qd7+ {[%clk 0:01:51.5]} 24... Kh6 {[%clk 0:01:43.2]}
25. Qd2+ {[%clk 0:01:46.5]} 25... g5 {[%clk 0:01:37.4]} 26. h4 {[%clk
0:01:33.4]} 26... Rg8 {[%clk 0:01:26]} 27. Re1 {[%clk 0:01:32.3]} 27... Qf6
{[%clk 0:01:21.7]} 28. Re4 {[%clk 0:01:05.8]} 28... Rg6 {[%clk 0:00:55.1]} 29.
Qe3 {[%clk 0:01:00.2]} 29... b6 {[%clk 0:00:48.4]} 30. Re5 {[%clk 0:00:40.8]}
30... Kh5 {[%clk 0:00:32.1]} 31. g3 {[%clk 0:00:31.7]} 31... a5 {[%clk
0:00:28.6]} 32. Qe2+ {[%clk 0:00:28.2]} 32... Kh6 {[%clk 0:00:24.7]} 33. hxg5+
{[%clk 0:00:20.6]} 33... Qxg5 {[%clk 0:00:24.6]} 34. Rxg5 {[%clk 0:00:19.5]}
34... Kxg5 {[%clk 0:00:25]} 35. Qe3+ {[%clk 0:00:18]} 35... Kh5 {[%clk 0:00:24]}
36. Qf3+ {[%clk 0:00:17]} 36... Kh6 {[%clk 0:00:24]} 37. Qf4+ {[%clk 0:00:17.4]}
37... Kg7 {[%clk 0:00:24.3]} 38. Qc7+ {[%clk 0:00:17.5]} 38... Kh6 {[%clk
0:00:25.2]} 39. Kg2 {[%clk 0:00:17.8]} 39... Rf6 {[%clk 0:00:25]} 40. f4 {[%clk
0:00:17.7]} 40... Kg6 {[%clk 0:00:25.9]} 41. Kf3 {[%clk 0:00:18]} 41... h5
{[%clk 0:00:26.8]} 42. Qc8 {[%clk 0:00:16.4]} 42... Kg7 {[%clk 0:00:26.1]} 43.
Qd7+ {[%clk 0:00:16.3]} 43... Rf7 {[%clk 0:00:26.2]} 44. Qe6 {[%clk 0:00:15.9]}
44... Rf6 {[%clk 0:00:27.1]} 45. Qe8 {[%clk 0:00:16.3]} 45... Rh6 {[%clk
0:00:24.8]} 46. Qe7+ {[%clk 0:00:15.8]} 46... Kg8 {[%clk 0:00:24.2]} 47. f5
{[%clk 0:00:16.2]} 47... Rh7 {[%clk 0:00:22]} 48. Qe6+ {[%clk 0:00:16.2]} 48...
Kh8 {[%clk 0:00:20.5]} 49. Qxb6 {[%clk 0:00:15.5]} 49... h4 {[%clk 0:00:21.4]}
50. gxh4 {[%clk 0:00:15]} 50... Rxh4 {[%clk 0:00:22.3]} 51. Qd8+ {[%clk
0:00:15]} 51... Kg7 {[%clk 0:00:20.8]} 52. Qxh4 {[%clk 0:00:15.9]} 52... a4
{[%clk 0:00:20.9]} 53. Qg5+ {[%clk 0:00:15.5]} 53... Kf7 {[%clk 0:00:21.8]} 54.
Qg6+ {[%clk 0:00:16]} 54... Ke7 {[%clk 0:00:22.6]} 55. Qe6+ {[%clk 0:00:16.6]}
55... Kf8 {[%clk 0:00:22.9]} 56. Qd7 {[%clk 0:00:16.4]} 56... Kg8 {[%clk
0:00:23.7]} 57. f6 {[%clk 0:00:16.8]} 57... a3 {[%clk 0:00:23.8]} 58. Qg7#
{[%clk 0:00:16.9]} 1-0

[Event "*** SCC Grand Prix: Titled Tuesday Blitz"]
[Site "Chess.com"]
[Date "2020.06.23"]
[Round "5"]
[White "Bazarov04"]
[Black "ARTHURMOTIVATOR"]
[Result "1-0"]
[WhiteElo "2501"]
[BlackElo "2342"]
[TimeControl "180+1"]
[EndTime "10:57:15 PDT"]
[Termination "Bazarov04 won on time"]

1. d4 {[%clk 0:03:00]} 1... Nf6 {[%clk 0:02:56.7]} 2. c4 {[%clk 0:02:59.7]} 2...
c5 {[%clk 0:02:53.9]} 3. Nf3 {[%clk 0:02:57.9]} 3... cxd4 {[%clk 0:02:53.5]} 4.
Nxd4 {[%clk 0:02:58.8]} 4... e5 {[%clk 0:02:51]} 5. Nb5 {[%clk 0:02:58.1]} 5...
d5 {[%clk 0:02:47.1]} 6. cxd5 {[%clk 0:02:59]} 6... Bc5 {[%clk 0:02:45.9]} 7.
N5c3 {[%clk 0:02:57.6]} 7... O-O {[%clk 0:02:40.7]} 8. g3 {[%clk 0:02:56.5]}
8... Qb6 {[%clk 0:02:27.6]} 9. e3 {[%clk 0:02:56]} 9... Bg4 {[%clk 0:02:26.7]}
10. Be2 {[%clk 0:02:56.2]} 10... Bxe2 {[%clk 0:02:23.2]} 11. Qxe2 {[%clk
0:02:56]} 11... e4 {[%clk 0:02:18.7]} 12. a3 {[%clk 0:02:54.1]} 12... Bd6 {[%clk
0:02:05.8]} 13. Nd2 {[%clk 0:02:53.2]} 13... Re8 {[%clk 0:01:54.2]} 14. Nc4
{[%clk 0:02:44.7]} 14... Qd8 {[%clk 0:01:53]} 15. b4 {[%clk 0:02:37.5]} 15...
Bf8 {[%clk 0:01:44.6]} 16. Bb2 {[%clk 0:02:36.4]} 16... Nbd7 {[%clk 0:01:35.2]}
17. O-O {[%clk 0:02:32.8]} 17... Rc8 {[%clk 0:01:33.1]} 18. Rfd1 {[%clk
0:02:28.7]} 18... Ne5 {[%clk 0:01:28.6]} 19. Nxe5 {[%clk 0:02:24.4]} 19... Rxe5
{[%clk 0:01:27.7]} 20. d6 {[%clk 0:02:23.7]} 20... Qd7 {[%clk 0:01:19.4]} 21.
Rac1 {[%clk 0:02:19.8]} 21... Rh5 {[%clk 0:01:14.2]} 22. Nxe4 {[%clk 0:02:16.5]}
22... Qh3 {[%clk 0:00:33.1]} 23. Nxf6+ {[%clk 0:02:12.6]} 23... gxf6 {[%clk
0:00:33.3]} 24. f3 {[%clk 0:02:06.3]} 24... Rxc1 {[%clk 0:00:30.1]} 25. Bxc1
{[%clk 0:02:02.2]} 25... Qd7 {[%clk 0:00:27.5]} 26. f4 {[%clk 0:01:37.9]} 26...
Rh6 {[%clk 0:00:23.4]} 27. Bb2 {[%clk 0:01:23.9]} 27... f5 {[%clk 0:00:19.9]}
28. Be5 {[%clk 0:01:19.4]} 28... Re6 {[%clk 0:00:15.7]} 29. Qh5 {[%clk
0:01:15.6]} 29... f6 {[%clk 0:00:15.4]} 30. Bd4 {[%clk 0:00:54.5]} 30... Rxd6
{[%clk 0:00:13.2]} 31. Qf3 {[%clk 0:00:50.1]} 31... Rd5 {[%clk 0:00:12.7]} 32.
Rc1 {[%clk 0:00:49.7]} 32... Be7 {[%clk 0:00:11.9]} 33. Kg2 {[%clk 0:00:48.8]}
33... b6 {[%clk 0:00:11.5]} 34. Rc2 {[%clk 0:00:48.7]} 34... a5 {[%clk
0:00:10.9]} 35. bxa5 {[%clk 0:00:38.8]} 35... bxa5 {[%clk 0:00:11.8]} 36. a4
{[%clk 0:00:38.8]} 36... Kg7 {[%clk 0:00:08]} 37. Rb2 {[%clk 0:00:36.2]} 37...
Kg6 {[%clk 0:00:07]} 38. h3 {[%clk 0:00:32]} 38... h5 {[%clk 0:00:05.9]} 39. Rb8
{[%clk 0:00:28.9]} 39... Rxd4 {[%clk 0:00:01.1]} 40. exd4 {[%clk 0:00:28.5]}
40... Qxd4 {[%clk 0:00:01.2]} 41. Qf2 {[%clk 0:00:15.1]} 41... Bc5 {[%clk
0:00:02.1]} 42. Qxd4 {[%clk 0:00:14.9]} 42... Bxd4 {[%clk 0:00:01.8]} 43. Rb5
{[%clk 0:00:14.8]} 43... Bc3 {[%clk 0:00:01.7]} 44. Kf3 {[%clk 0:00:15.2]} 44...
h4 {[%clk 0:00:01.8]} 45. gxh4 {[%clk 0:00:13.8]} 45... Kh5 {[%clk 0:00:01.4]}
46. Rxf5+ {[%clk 0:00:13.4]} 46... Kxh4 {[%clk 0:00:01.7]} 47. Kg2 {[%clk
0:00:13.7]} 1-0

[Event "*** SCC Grand Prix: Titled Tuesday Blitz"]
[Site "Chess.com"]
[Date "2020.06.23"]
[Round "5"]
[White "Azerichess"]
[Black "MartinCerveny"]
[Result "1-0"]
[WhiteElo "3031"]
[BlackElo "2669"]
[TimeControl "180+1"]
[EndTime "10:57:16 PDT"]
[Termination "Azerichess won by resignation"]

1. d4 {[%clk 0:03:00.9]} 1... d5 {[%clk 0:02:59.8]} 2. c4 {[%clk 0:03:01.8]}
2... c6 {[%clk 0:02:59.7]} 3. Nf3 {[%clk 0:03:00.9]} 3... Nf6 {[%clk 0:02:59.8]}
4. Qb3 {[%clk 0:03:01.5]} 4... g6 {[%clk 0:02:55.9]} 5. Bf4 {[%clk 0:02:56.2]}
5... Bg7 {[%clk 0:02:55.5]} 6. e3 {[%clk 0:02:56.3]} 6... O-O {[%clk 0:02:55.2]}
7. Nc3 {[%clk 0:02:55.9]} 7... b6 {[%clk 0:02:33.9]} 8. h3 {[%clk 0:02:51.3]}
8... Ba6 {[%clk 0:02:29.8]} 9. Rc1 {[%clk 0:02:50.4]} 9... e6 {[%clk 0:02:26.8]}
10. Be2 {[%clk 0:02:36]} 10... Nbd7 {[%clk 0:02:15.4]} 11. O-O {[%clk 0:02:35]}
11... Bb7 {[%clk 0:02:01.4]} 12. Rfd1 {[%clk 0:02:26.3]} 12... Qe7 {[%clk
0:01:58]} 13. a3 {[%clk 0:02:21.6]} 13... h6 {[%clk 0:01:55]} 14. Bh2 {[%clk
0:02:20.7]} 14... Rfd8 {[%clk 0:01:52.7]} 15. c5 {[%clk 0:02:12.7]} 15... b5
{[%clk 0:01:51.3]} 16. Nxb5 {[%clk 0:02:01.2]} 16... cxb5 {[%clk 0:01:49.2]} 17.
c6 {[%clk 0:02:01.2]} 17... Bxc6 {[%clk 0:01:43.5]} 18. Rxc6 {[%clk 0:02:02.1]}
18... a6 {[%clk 0:01:42.1]} 19. Rdc1 {[%clk 0:02:00.3]} 19... Ne8 {[%clk
0:01:40.8]} 20. a4 {[%clk 0:01:57.1]} 20... bxa4 {[%clk 0:01:38.4]} 21. Qxa4
{[%clk 0:01:58]} 21... a5 {[%clk 0:01:38.5]} 22. Bb5 {[%clk 0:01:55.7]} 22...
Qb4 {[%clk 0:01:35.8]} 23. b3 {[%clk 0:01:43.2]} 23... Qxa4 {[%clk 0:01:30.1]}
24. bxa4 {[%clk 0:01:42.6]} 24... Bf8 {[%clk 0:01:18]} 25. Bc7 {[%clk
0:01:35.6]} 25... Nxc7 {[%clk 0:01:06.5]} 26. Rxc7 {[%clk 0:01:36.5]} 26... Nb6
{[%clk 0:01:04.1]} 27. Ne5 {[%clk 0:01:23.7]} 27... Bd6 {[%clk 0:01:03.9]} 28.
Nxf7 {[%clk 0:01:23]} 28... Bxc7 {[%clk 0:01:01.3]} 29. Rxc7 {[%clk 0:01:23.9]}
29... Rdc8 {[%clk 0:00:55]} 30. Nxh6+ {[%clk 0:01:22.4]} 30... Kh8 {[%clk
0:00:54.7]} 31. Re7 {[%clk 0:01:17.6]} 31... Nc4 {[%clk 0:00:53.3]} 32. Rxe6
{[%clk 0:01:10]} 32... Nd2 {[%clk 0:00:52.3]} 33. Nf7+ {[%clk 0:00:57.8]} 33...
Kg7 {[%clk 0:00:51]} 34. Ne5 {[%clk 0:00:58.3]} 34... Rc1+ {[%clk 0:00:43.9]}
35. Kh2 {[%clk 0:00:58]} 35... Rb8 {[%clk 0:00:44.8]} 36. g4 {[%clk 0:00:55.5]}
36... Ne4 {[%clk 0:00:40.5]} 37. Re7+ {[%clk 0:00:29.2]} 37... Kg8 {[%clk
0:00:39]} 38. Bd7 {[%clk 0:00:23.5]} 38... Rb6 {[%clk 0:00:21.7]} 39. Be6+
{[%clk 0:00:22.6]} 39... Rxe6 {[%clk 0:00:21.6]} 40. Rxe6 {[%clk 0:00:23.5]}
40... Nxf2 {[%clk 0:00:21.7]} 41. Rxg6+ {[%clk 0:00:23.5]} 41... Kf8 {[%clk
0:00:21.8]} 42. Ra6 {[%clk 0:00:24.4]} 42... Nd1 {[%clk 0:00:20.6]} 43. Ra8+
{[%clk 0:00:20.9]} 43... Ke7 {[%clk 0:00:19.7]} 44. Ra7+ {[%clk 0:00:20.6]}
44... Ke6 {[%clk 0:00:19.6]} 45. Ra6+ {[%clk 0:00:20]} 45... Ke7 {[%clk
0:00:19.8]} 46. Kg3 {[%clk 0:00:18.3]} 46... Nxe3 {[%clk 0:00:19.6]} 47. Kf4
{[%clk 0:00:18.9]} 47... Ng2+ {[%clk 0:00:19.4]} 48. Kg5 {[%clk 0:00:19]} 48...
Rf1 {[%clk 0:00:18.4]} 49. h4 {[%clk 0:00:18.4]} 49... Ne1 {[%clk 0:00:18]} 50.
h5 {[%clk 0:00:18]} 50... Nc2 {[%clk 0:00:17.9]} 51. h6 {[%clk 0:00:18.1]} 51...
Nxd4 {[%clk 0:00:18]} 52. h7 {[%clk 0:00:18.3]} 52... Rh1 {[%clk 0:00:17.9]} 53.
h8=Q {[%clk 0:00:17.3]} 1-0

[Event "*** SCC Grand Prix: Titled Tuesday Blitz"]
[Site "Chess.com"]
[Date "2020.06.23"]
[Round "5"]
[White "skoularikii"]
[Black "crazy_but_lazy"]
[Result "1-0"]
[WhiteElo "2499"]
[BlackElo "2317"]
[TimeControl "180+1"]
[EndTime "10:57:16 PDT"]
[Termination "skoularikii won by checkmate"]

1. e4 {[%clk 0:03:00.9]} 1... e6 {[%clk 0:02:59.2]} 2. d4 {[%clk 0:03:00.5]}
2... d5 {[%clk 0:02:59.4]} 3. Nc3 {[%clk 0:03:01.1]} 3... Nf6 {[%clk 0:02:58.8]}
4. Bg5 {[%clk 0:02:59.5]} 4... dxe4 {[%clk 0:02:58.5]} 5. Nxe4 {[%clk 0:02:57]}
5... Be7 {[%clk 0:02:57.5]} 6. Bxf6 {[%clk 0:02:56.4]} 6... gxf6 {[%clk
0:02:57.4]} 7. Nf3 {[%clk 0:02:56.3]} 7... a6 {[%clk 0:02:55.4]} 8. Qd2 {[%clk
0:02:54]} 8... f5 {[%clk 0:02:50.4]} 9. Ng3 {[%clk 0:02:53.2]} 9... b5 {[%clk
0:02:49]} 10. Nh5 {[%clk 0:02:32.8]} 10... Bf8 {[%clk 0:01:37.5]} 11. O-O-O
{[%clk 0:02:28.5]} 11... Bb7 {[%clk 0:01:37.5]} 12. Be2 {[%clk 0:02:15.7]} 12...
Nd7 {[%clk 0:01:33.8]} 13. Rhe1 {[%clk 0:02:14.7]} 13... Qe7 {[%clk 0:01:18.4]}
14. d5 {[%clk 0:01:57.9]} 14... O-O-O {[%clk 0:00:57.5]} 15. d6 {[%clk
0:01:38.1]} 15... Qxd6 {[%clk 0:00:43.3]} 16. Qc3 {[%clk 0:01:20.4]} 16... Bh6+
{[%clk 0:00:39.7]} 17. Kb1 {[%clk 0:01:19.5]} 17... Qc6 {[%clk 0:00:36.9]} 18.
Qa3 {[%clk 0:01:15.4]} 18... Nc5 {[%clk 0:00:28.4]} 19. Ne5 {[%clk 0:01:10.2]}
19... Qb6 {[%clk 0:00:18.6]} 20. Nxf7 {[%clk 0:01:00.9]} 20... b4 {[%clk
0:00:18.9]} 21. Rxd8+ {[%clk 0:00:58.7]} 21... Rxd8 {[%clk 0:00:18]} 22. Qg3
{[%clk 0:00:55.3]} 22... Rf8 {[%clk 0:00:12.8]} 23. Nxh6 {[%clk 0:00:54.7]}
23... Bd5 {[%clk 0:00:08.6]} 24. Bf3 {[%clk 0:00:53.6]} 24... Rd8 {[%clk
0:00:06.9]} 25. Bxd5 {[%clk 0:00:53]} 25... Rxd5 {[%clk 0:00:07.8]} 26. Nf6
{[%clk 0:00:52.6]} 26... Rd6 {[%clk 0:00:06.5]} 27. Nf7 {[%clk 0:00:52]} 27...
Rc6 {[%clk 0:00:05.2]} 28. Qg8+ {[%clk 0:00:49.3]} 28... Kb7 {[%clk 0:00:05.6]}
29. Nd8+ {[%clk 0:00:49.5]} 29... Ka7 {[%clk 0:00:06.1]} 30. Nxc6+ {[%clk
0:00:49.2]} 30... Qxc6 {[%clk 0:00:07]} 31. b3 {[%clk 0:00:42.4]} 31... a5
{[%clk 0:00:05.2]} 32. Qxh7 {[%clk 0:00:41.8]} 32... a4 {[%clk 0:00:05.6]} 33.
Qh3 {[%clk 0:00:40.7]} 33... a3 {[%clk 0:00:05.6]} 34. Qe3 {[%clk 0:00:39.6]}
34... Ka6 {[%clk 0:00:04.4]} 35. c3 {[%clk 0:00:39]} 35... bxc3 {[%clk
0:00:04.4]} 36. Rc1 {[%clk 0:00:38.8]} 36... Qb5 {[%clk 0:00:04.4]} 37. Rxc3
{[%clk 0:00:38.2]} 37... Na4 {[%clk 0:00:04.2]} 38. Qxe6+ {[%clk 0:00:36.8]}
38... Ka7 {[%clk 0:00:04.2]} 39. Rc4 {[%clk 0:00:36.2]} 39... Nc3+ {[%clk
0:00:03.5]} 40. Rxc3 {[%clk 0:00:35.6]} 40... Qf1+ {[%clk 0:00:04.4]} 41. Kc2
{[%clk 0:00:30.9]} 41... Qxf2+ {[%clk 0:00:05.1]} 42. Kd3 {[%clk 0:00:30.4]}
42... Qf1+ {[%clk 0:00:04.5]} 43. Qe2 {[%clk 0:00:29.6]} 43... Qb1+ {[%clk
0:00:05.1]} 44. Rc2 {[%clk 0:00:30.1]} 44... Qa1 {[%clk 0:00:05]} 45. Qe3+
{[%clk 0:00:30.3]} 45... Kb7 {[%clk 0:00:05.2]} 46. Nd5 {[%clk 0:00:30.1]} 46...
Qd1+ {[%clk 0:00:04.7]} 47. Qd2 {[%clk 0:00:27.5]} 47... Qf1+ {[%clk 0:00:05.3]}
48. Kc3 {[%clk 0:00:27.2]} 48... Qg1 {[%clk 0:00:04.7]} 49. b4 {[%clk
0:00:27.1]} 49... Qxh2 {[%clk 0:00:03.9]} 50. Kb3 {[%clk 0:00:27.1]} 50... Qe5
{[%clk 0:00:04.4]} 51. Rxc7+ {[%clk 0:00:27]} 51... Kb8 {[%clk 0:00:04.6]} 52.
Qd3 {[%clk 0:00:27]} 52... Qb2+ {[%clk 0:00:05]} 53. Ka4 {[%clk 0:00:26.7]}
53... f4 {[%clk 0:00:05.5]} 54. Qb5+ {[%clk 0:00:26.7]} 54... Ka8 {[%clk
0:00:05.5]} 55. Qb7# {[%clk 0:00:27.2]} 1-0

[Event "*** SCC Grand Prix: Titled Tuesday Blitz"]
[Site "Chess.com"]
[Date "2020.06.23"]
[Round "5"]
[White "Jumbo"]
[Black "youngKID"]
[Result "0-1"]
[WhiteElo "2840"]
[BlackElo "2769"]
[TimeControl "180+1"]
[EndTime "10:57:19 PDT"]
[Termination "youngKID won by resignation"]

1. d4 {[%clk 0:03:00.9]} 1... Nf6 {[%clk 0:02:55.3]} 2. Bf4 {[%clk 0:02:58]}
2... g6 {[%clk 0:02:53]} 3. e3 {[%clk 0:02:58.4]} 3... Bg7 {[%clk 0:02:53.2]} 4.
Nf3 {[%clk 0:02:59]} 4... O-O {[%clk 0:02:53]} 5. Be2 {[%clk 0:02:59.5]} 5... b6
{[%clk 0:02:52.9]} 6. c4 {[%clk 0:02:58.3]} 6... Bb7 {[%clk 0:02:52.8]} 7. Qc2
{[%clk 0:02:57.3]} 7... c5 {[%clk 0:02:50.5]} 8. d5 {[%clk 0:02:56.6]} 8... d6
{[%clk 0:02:42.3]} 9. Nc3 {[%clk 0:02:46.2]} 9... Nbd7 {[%clk 0:02:36.4]} 10. h3
{[%clk 0:02:44.3]} 10... a6 {[%clk 0:02:32.6]} 11. a4 {[%clk 0:02:38.4]} 11...
Ne8 {[%clk 0:02:26.8]} 12. Rd1 {[%clk 0:02:28.5]} 12... Ne5 {[%clk 0:02:09.3]}
13. Nd2 {[%clk 0:02:16.7]} 13... Nc7 {[%clk 0:02:02.3]} 14. Bh2 {[%clk
0:02:04.3]} 14... e6 {[%clk 0:01:46.3]} 15. f4 {[%clk 0:01:03]} 15... Qh4+
{[%clk 0:01:06.1]} 16. g3 {[%clk 0:00:45.5]} 16... Qxh3 {[%clk 0:01:06.3]} 17.
Bf1 {[%clk 0:00:45.4]} 17... Qh6 {[%clk 0:01:05.2]} 18. fxe5 {[%clk 0:00:41.4]}
18... Qxe3+ {[%clk 0:01:04.5]} 19. Ne2 {[%clk 0:00:40.9]} 19... Bxe5 {[%clk
0:01:00.6]} 20. Bg2 {[%clk 0:00:30.5]} 20... exd5 {[%clk 0:00:52.1]} 21. Nf1
{[%clk 0:00:24]} 21... Qg5 {[%clk 0:00:51]} 22. cxd5 {[%clk 0:00:23.5]} 22...
Rae8 {[%clk 0:00:43.8]} 23. Qd2 {[%clk 0:00:18.6]} 23... Qf6 {[%clk 0:00:40.6]}
24. Qh6 {[%clk 0:00:17.3]} 24... Bxb2 {[%clk 0:00:35.8]} 25. Bg1 {[%clk
0:00:15.9]} 25... Bc3+ {[%clk 0:00:24.5]} 26. Nd2 {[%clk 0:00:16.3]} 26... Qg7
{[%clk 0:00:23.6]} 27. Qxg7+ {[%clk 0:00:14.7]} 27... Kxg7 {[%clk 0:00:23.2]}
28. Kf1 {[%clk 0:00:13.5]} 28... Be5 {[%clk 0:00:15]} 29. Nc4 {[%clk 0:00:13]}
29... b5 {[%clk 0:00:15.1]} 30. Na5 {[%clk 0:00:07.3]} 30... Bc8 {[%clk
0:00:13.9]} 31. axb5 {[%clk 0:00:06.6]} 31... axb5 {[%clk 0:00:13.8]} 32. Bf3
{[%clk 0:00:07.1]} 32... h5 {[%clk 0:00:10.7]} 33. Kg2 {[%clk 0:00:07.1]} 33...
Bg4 {[%clk 0:00:10]} 34. Nc6 {[%clk 0:00:05.6]} 34... Bf6 {[%clk 0:00:09.3]} 35.
Nf4 {[%clk 0:00:05.1]} 35... Ra8 {[%clk 0:00:08.1]} 36. Rd2 {[%clk 0:00:04.6]}
36... b4 {[%clk 0:00:07.2]} 37. Bxg4 {[%clk 0:00:04.1]} 37... hxg4 {[%clk
0:00:07.5]} 38. Be3 {[%clk 0:00:04.5]} 38... Ra3 {[%clk 0:00:07.2]} 39. Re2
{[%clk 0:00:03.8]} 39... Re8 {[%clk 0:00:07.4]} 40. Bc1 {[%clk 0:00:02.3]} 40...
Rxe2+ {[%clk 0:00:07]} 41. Nxe2 {[%clk 0:00:03.2]} 41... Ra2 {[%clk 0:00:07.6]}
42. Kf2 {[%clk 0:00:02.8]} 42... Nxd5 {[%clk 0:00:08]} 43. Rd1 {[%clk
0:00:02.5]} 43... Nc3 {[%clk 0:00:07.7]} 44. Rd2 {[%clk 0:00:03.1]} 44... Ne4+
{[%clk 0:00:07.9]} 45. Ke1 {[%clk 0:00:03.4]} 45... Nxd2 {[%clk 0:00:08.8]} 46.
Bxd2 {[%clk 0:00:04.3]} 46... b3 {[%clk 0:00:09]} 0-1

[Event "*** SCC Grand Prix: Titled Tuesday Blitz"]
[Site "Chess.com"]
[Date "2020.06.23"]
[Round "5"]
[White "nikitakhoroshev"]
[Black "TimKett"]
[Result "1-0"]
[WhiteElo "2477"]
[BlackElo "2222"]
[TimeControl "180+1"]
[EndTime "10:57:19 PDT"]
[Termination "nikitakhoroshev won by resignation"]

1. d4 {[%clk 0:03:00.9]} 1... d5 {[%clk 0:02:58.6]} 2. c4 {[%clk 0:03:00.5]}
2... e6 {[%clk 0:02:58.7]} 3. Nc3 {[%clk 0:03:00.1]} 3... c5 {[%clk 0:02:58.6]}
4. cxd5 {[%clk 0:02:59.7]} 4... exd5 {[%clk 0:02:58.8]} 5. Nf3 {[%clk
0:02:59.5]} 5... Nc6 {[%clk 0:02:58.6]} 6. g3 {[%clk 0:02:59.6]} 6... Nf6 {[%clk
0:02:57.4]} 7. Bg2 {[%clk 0:02:59.6]} 7... cxd4 {[%clk 0:02:57.2]} 8. Nxd4
{[%clk 0:02:59]} 8... Bc5 {[%clk 0:02:57]} 9. Nb3 {[%clk 0:02:53.8]} 9... Bb6
{[%clk 0:02:54.6]} 10. Nxd5 {[%clk 0:02:44.2]} 10... Nxd5 {[%clk 0:02:41.9]} 11.
Qxd5 {[%clk 0:02:45.1]} 11... Be6 {[%clk 0:02:35.2]} 12. Qxd8+ {[%clk
0:02:32.3]} 12... Rxd8 {[%clk 0:02:33.7]} 13. O-O {[%clk 0:02:31.8]} 13... O-O
{[%clk 0:02:23.1]} 14. Bf4 {[%clk 0:02:21.4]} 14... Bc4 {[%clk 0:01:54.7]} 15.
Rfe1 {[%clk 0:02:02.4]} 15... Rfe8 {[%clk 0:01:53.1]} 16. e4 {[%clk 0:01:53.3]}
16... Nb4 {[%clk 0:01:45]} 17. Rec1 {[%clk 0:01:45.4]} 17... Be6 {[%clk
0:01:35.8]} 18. Nc5 {[%clk 0:01:37]} 18... Bxc5 {[%clk 0:01:31.5]} 19. Rxc5
{[%clk 0:01:37.9]} 19... b6 {[%clk 0:01:15.9]} 20. Rc7 {[%clk 0:01:35.1]} 20...
a5 {[%clk 0:01:14]} 21. a4 {[%clk 0:01:25.8]} 21... Nd3 {[%clk 0:01:12.7]} 22.
Be3 {[%clk 0:01:25.7]} 22... Nxb2 {[%clk 0:01:07.3]} 23. Bxb6 {[%clk 0:01:24.4]}
23... Rd6 {[%clk 0:00:56.7]} 24. Bxa5 {[%clk 0:01:18.5]} 24... Red8 {[%clk
0:00:57.2]} 25. h4 {[%clk 0:00:59.8]} 25... Rd1+ {[%clk 0:00:52.8]} 26. Rxd1
{[%clk 0:00:58.2]} 26... Rxd1+ {[%clk 0:00:53.3]} 27. Kh2 {[%clk 0:00:58.2]}
27... h6 {[%clk 0:00:51.6]} 28. Rb7 {[%clk 0:00:56.4]} 28... Nxa4 {[%clk
0:00:50]} 29. Bb4 {[%clk 0:00:50.3]} 29... Nb2 {[%clk 0:00:48]} 30. f4 {[%clk
0:00:37.7]} 30... Nd3 {[%clk 0:00:47.4]} 31. f5 {[%clk 0:00:34.4]} 31... Bc4
{[%clk 0:00:40.1]} 32. Rc7 {[%clk 0:00:22.6]} 32... Nxb4 {[%clk 0:00:34.8]} 33.
Rxc4 {[%clk 0:00:20.9]} 33... Nd3 {[%clk 0:00:35.3]} 34. Rc8+ {[%clk 0:00:20.4]}
34... Kh7 {[%clk 0:00:34.5]} 35. g4 {[%clk 0:00:19.9]} 35... Nf4 {[%clk
0:00:26]} 36. Bf3 {[%clk 0:00:19.7]} 36... g5 {[%clk 0:00:23.8]} 37. fxg6+
{[%clk 0:00:17.3]} 37... fxg6 {[%clk 0:00:23.2]} 38. Rc7+ {[%clk 0:00:17.4]}
38... Kh8 {[%clk 0:00:21.8]} 39. Kg3 {[%clk 0:00:17.6]} 39... g5 {[%clk
0:00:21.5]} 40. hxg5 {[%clk 0:00:18.5]} 40... hxg5 {[%clk 0:00:20.6]} 41. Rc5
{[%clk 0:00:19]} 41... Rg1+ {[%clk 0:00:20.1]} 42. Kh2 {[%clk 0:00:18.8]} 42...
Rf1 {[%clk 0:00:19.3]} 43. Rc3 {[%clk 0:00:18.2]} 43... Kg7 {[%clk 0:00:16.9]}
44. e5 {[%clk 0:00:18]} 44... Kf7 {[%clk 0:00:15.7]} 45. Rc6 {[%clk 0:00:16.6]}
45... Rxf3 {[%clk 0:00:14.3]} 46. Rf6+ {[%clk 0:00:16.8]} 46... Kg7 {[%clk
0:00:13.2]} 47. Rf5 {[%clk 0:00:17.2]} 47... Rf2+ {[%clk 0:00:11.3]} 48. Kg3
{[%clk 0:00:16.5]} 48... Nd3 {[%clk 0:00:09.3]} 49. Rxf2 {[%clk 0:00:16]} 49...
Nxf2 {[%clk 0:00:09.6]} 50. Kxf2 {[%clk 0:00:16.9]} 50... Kf7 {[%clk 0:00:09.8]}
51. Ke3 {[%clk 0:00:17.8]} 51... Ke7 {[%clk 0:00:09.6]} 52. Kd4 {[%clk
0:00:17.4]} 52... Ke6 {[%clk 0:00:10.1]} 53. Ke4 {[%clk 0:00:17.8]} 53... Ke7
{[%clk 0:00:09.8]} 54. Kf5 {[%clk 0:00:18.7]} 1-0